Cogmind - Beta 15 @@@ ROGUE MODE // 2025.08.29 @ 02:18:43 Player: Mogwok Wargfriend Result: Destroyed by G-67 Veteran with Plasma Rifle Performance ------------- Evolutions (7) 3500 Regions Visited (19) 3800 Robots Destroyed (366) 1830 Value Destroyed (16017) 16017 Prototype IDs (47) 940 Alien Tech Used (0) 0 Bonus (11639) 11639 TOTAL SCORE: 37726 Bonus ------- Triggered Max Security 1000 High Alert Combat Kills 2310 Follower Combat Kills 1861 Entered Garrisons 600 Used RIF Installer 2000 Network Hubs Disabled 200 Aligned with FarCom 300 Met Zhirov 300 Built Enhanced Grunts 300 A7 Reached Mainframe 300 Met R17 at Cetus 500 Read Decrypted Archives 300 Met R17 at Research 2000 Friendly Fire -332 Cogmind --------- Core Integrity 0/1300 Matter 234/300 Energy 66/100 System Corruption 11% Temperature Cool (21) Movement Core (50) Location -3/Testing Parts ------- > --- POWER (2) -------- (None) > --- PROPULSION (6) --- (None) > --- UTILITY (10) ----- (None) > --- WEAPON (3) ------- (None) > --- INVENTORY (5) ---- Advanced Gravity Neutralizer Focal Shield Faulty Heavy Gatling Laser Heavy Dispersion Rifle Matter Neutralizer Peak State ------------ > --- POWER ------------ Light Particle Reactor Micro Antimatter Reactor > --- PROPULSION ------- Heavy Treads Improved Heavy Treads Improved Heavy Treads > --- UTILITY ---------- Advanced Heat Sink Advanced Heat Sink High-capacity Storage Unit Energy Well Advanced Targeting Computer Improved Armor Integrity Analyzer Experimental Reaction Control System Centrium Light Armor Plating Centrium Medium Armor Plating Experimental Thermal Shield > --- WEAPON ----------- Plasma Rifle Quantum Rifle Nova Cannon > --- INVENTORY -------- Neutrino Core Light Antimatter Reactor Improved Heavy Treads Biometal Medium Treads Centrium Heavy Treads Advanced Heat Sink Advanced Heat Sink Advanced Energy Well Centrium Light Armor Plating Centrium Light Armor Plating Advanced Powered Armor Focal Shield Gamma Rifle Variable Charge Gun Compact HERF Cannon Matter Neutralizer Micro-nuke Launcher Longsword +1 [Rating: 154] Favorites ----------- Power Cooled Ion Engine Engine Cooled Ion Engine Power Core Fission Core Reactor Particle Reactor Propulsion Armored Treads Treads Armored Treads Leg Improved Carbon-fiber Leg Wheel Compact Wheel Hover Unit Antigrav System Flight Unit Q-thruster Utility Large Storage Unit Device Advanced Heat Sink Storage Large Storage Unit Processor Advanced Targeting Computer Hackware Relay Coupler [NC] Protection Improved Light Armor Plating Weapon Improved Medium Laser Energy Gun Improved Medium Laser Energy Cannon Heavy Plasma Cannon Ballistic Gun Enhanced Autogun Launcher Advanced EMP Blaster Special Weapon Mining Laser Slashing Weapon Longsword +1 Build | -11 -10 -10 -10 -9 -8 -8 -8 -8 -7 -6 -6 -5 -4 -4 -4 -4 -4 -3 -3 ------- Run | Yrd Mat Min Exi Min Mat Gar Mat Gar Fac Fac Gar Fac Fac Ext Cet Arc Hub Res Tes Slots Evolved 14 | . . . . . 4 . . . 2 2 . 2 2 . . . . 2 . Power 1 | . . . . . . . . . . . . . 1 . . . . . . Propulsion 4 | . . . . . 1 . . . 1 . . . 1 . . . . 1 . Utility 8 | . . . . . 2 . . . 1 2 . 2 . . . . . 1 . Weapon 1 | . . . . . 1 . . . . . . . . . . . . . . Parts Attached 245 | 7 9 5 1 3 24 7 2 8 12 13 25 2 13 22 9 2 8 65 8 Power 35 | 1 3 1 1 . 4 . . . 1 1 2 . 2 5 2 . 2 10 . Engine 14 | 1 3 1 1 . 4 . . . 1 1 1 . . . . . 1 . . Core 3 | . . . . . . . . . . . . . . 1 1 . . 1 . Reactor 18 | . . . . . . . . . . . 1 . 2 4 1 . 1 9 . Propulsion 61 | 2 3 1 . 1 4 3 . 2 6 2 9 . 3 2 4 1 1 12 5 Treads 40 | 1 2 . . 1 . 3 . 2 6 2 5 . 2 2 3 1 1 9 . Leg 15 | . . . . . 4 . . . . . 4 . 1 . . . . 2 4 Wheel 3 | 1 1 1 . . . . . . . . . . . . . . . . . Hover 1 | . . . . . . . . . . . . . . . 1 . . . . Flight 2 | . . . . . . . . . . . . . . . . . . 1 1 Utility 96 | 2 2 1 . . 8 2 2 3 5 9 9 2 5 6 2 . 4 34 . Device 49 | 1 1 . . . 5 . . . 3 5 5 2 5 2 1 . 3 16 . Storage 9 | 1 1 . . . . . 1 . . . . . . . . . . 6 . Processor 7 | . . . . . . . 1 . 1 2 . . . . . . . 3 . Hackware 4 | . . . . . . 1 . 2 . . . . . . . . . 1 . Protection 27 | . . 1 . . 3 1 . 1 1 2 4 . . 4 1 . 1 8 . Artifact . | . . . . . . . . . . . . . . . . . . . . Weapon 53 | 2 1 2 . 2 8 2 . 3 . 1 5 . 3 9 1 1 1 9 3 Energy Gun 41 | 2 1 2 . 1 4 1 . 3 . 1 4 . 1 6 1 1 1 9 3 Energy Cannon 5 | . . . . . 1 . . . . . 1 . 1 2 . . . . . Ballistic Gun 2 | . . . . . 2 . . . . . . . . . . . . . . Ballistic Cannon . | . . . . . . . . . . . . . . . . . . . . Launcher 2 | . . . . . 1 . . . . . . . . 1 . . . . . Special Weapon 1 | . . . . 1 . . . . . . . . . . . . . . . Impact Weapon . | . . . . . . . . . . . . . . . . . . . . Slashing Weapon 2 | . . . . . . 1 . . . . . . 1 . . . . . . Piercing Weapon . | . . . . . . . . . . . . . . . . . . . . Special Melee Weapon . | . . . . . . . . . . . . . . . . . . . . Unidentified Prototypes 21 | . . . . . 6 . . 1 . . . . 1 1 3 . 1 5 3 Corrupted Parts 4 | . . . . . . . . . . . . . . . 2 2 . . . System Corruption 24 | . . . . . . . . . . . . . . . 12 12 . . . Parts Lost 97 | . 1 2 . . 2 3 . 5 4 1 7 . 4 10 6 2 10 35 5 Power 20 | . 1 . . . . . . . . . 1 . 1 3 2 . 4 8 . Propulsion 30 | . . . . . . 2 . 3 2 . 3 . . 3 3 1 1 8 4 Utility 28 | . . 1 . . 2 1 . 1 1 1 2 . 2 2 . . 3 11 1 Weapon 19 | . . 1 . . . . . 1 1 . 1 . 1 2 1 1 2 8 . Highest Loss Streak 16 | . 1 2 . . 1 1 . 1 2 1 3 . 2 2 4 2 8 16 5 To Critical Strikes . | . . . . . . . . . . . . . . . . . . . . Average Backups 14 | 5 12 14 15 14 14 14 14 14 14 14 14 14 14 14 13 13 13 17 15 Power 1 | . 1 1 1 1 1 2 1 1 . 1 . 1 . 1 1 1 . 1 . Propulsion 3 | 2 5 6 6 5 5 3 2 2 1 3 2 3 2 2 1 2 2 3 . Utility 4 | . 4 5 5 5 3 3 3 3 5 3 3 5 5 5 6 6 6 6 5 Weapon 5 | 1 2 2 2 3 4 5 6 7 6 6 6 5 4 4 5 4 4 5 8 Tool/Special . | . . . . . . . . . . . . . . . . . . . . Unused Backups 69 | . 8 1 . 1 10 2 2 . 1 3 7 1 . 1 3 . 1 16 12 Power 7 | . . . . . 2 . . . 1 . 1 . . . 1 . . 2 . Propulsion 13 | . 2 . . . 4 1 . . . 2 1 . . . . . . 3 . Utility 24 | . 4 1 . 1 2 1 1 . . . 3 . . 1 2 . 1 4 3 Weapon 24 | . 2 . . . 2 . 1 . . 1 2 1 . . . . . 7 8 Tool/Special 1 | . . . . . . . . . . . . . . . . . . . 1 Average Slot Usage (%) 95 | . 99 99 100 100 98 99 100 99 96 98 98 97 93 91 85 88 83 86 59 Engine 5 | . 13 14 14 14 8 9 9 9 7 5 2 . . . . . . . . Reactor 2 | . . . . . . . . . . . 3 5 9 7 9 10 4 6 . Treads 17 | . 14 14 14 14 . 21 27 25 19 25 23 17 15 17 13 10 11 15 . Leg 4 | . . . . . 25 5 . . 9 . 2 5 5 2 . . . 1 18 Wheel 1 | . 14 14 14 14 . . . . . . . . . . . . . . . Device 18 | . 14 . . . 17 17 11 9 12 25 25 26 27 28 26 26 26 18 12 Storage 8 | . 14 14 14 14 9 9 9 9 7 6 6 5 5 5 5 5 5 8 8 Processor 4 | . . . . . . . 6 9 7 9 6 5 5 5 5 5 5 9 4 Protection 7 | . . 13 14 14 8 8 9 8 6 3 6 11 8 6 9 10 9 8 3 Energy Gun 19 | . 28 27 28 27 23 26 27 26 22 19 14 11 10 12 8 10 10 10 8 Energy Cannon 1 | . . . . . 1 . . . . . 4 5 5 2 4 5 4 2 . Peak Build Rating 154 | 7 11 11 11 12 38 39 36 40 42 66 90 100 118 114 134 134 131 154 109 Average Rating 64 | 5 9 10 11 11 32 34 35 35 38 56 78 97 113 102 120 133 127 137 91 On Entrance 55 | . 7 10 11 11 12 36 35 35 34 38 66 89 100 114 96 134 131 87 63 Naked Turns . | . . . . . . . . . . . . . . . . . . . . Heaviest Build 122 | 12 30 36 36 36 50 48 43 44 45 51 74 72 85 85 88 89 89 122 67 Greatest Support 190 | 16 16 16 16 16 54 60 60 60 60 100 95 95 170 138 190 160 160 185 55 Greatest Overweight (x) 2 | . 1 2 2 2 2 2 . 1 1 1 1 . . . 1 . . 2 2 Average Overweight (x) . | . . 2 2 2 . . . . . . . . . . . . . . . Largest Inventory Capacity 20 | 8 15 15 15 15 15 15 15 15 15 15 15 15 15 15 15 15 15 20 20 Average Capacity 15 | 7 14 15 15 15 15 15 15 15 15 15 15 15 15 15 15 15 15 19 18 Most Carried 20 | 8 15 15 15 15 15 15 15 15 15 15 15 15 15 15 15 15 15 20 20 Average Carried 14 | 5 12 14 14 14 14 14 14 14 14 14 14 14 14 14 14 14 14 18 15 Final Capacity 20 | 8 15 15 15 15 15 15 15 15 15 15 15 15 15 15 15 15 15 20 5 Final Carried 15 | 8 15 15 15 15 15 15 15 15 15 15 15 14 13 15 15 15 14 12 5 Class Distribution -------------------- 35% | Skirmisher 34% | Scavenger-Tank 9% | Scavenger-Mutant 8% | Tank 7% | Mutant 4% | Scavenger-Skirmisher Dominant Class ---------------- Mutant | -10/Materials Scavenger-Mutant | -10/Mines Scavenger-Mutant | -10/Exiles Mutant | -9/Mines Skirmisher | -8/Materials Skirmisher | -8/Garrison Skirmisher | -8/Materials Skirmisher | -8/Garrison Skirmisher | -7/Factory Scavenger-Skirmisher | -6/Factory Scavenger-Tank | -6/Garrison Tank | -5/Factory Scavenger-Tank | -4/Factory Scavenger-Tank | -4/Extension Scavenger-Tank | -4/Cetus Scavenger-Tank | -4/Archives Scavenger-Tank | -4/Hub_04(d) Scavenger-Tank | -3/Research Scavenger-Tank | -3/Testing Resources | -11 -10 -10 -10 -9 -8 -8 -8 -8 -7 -6 -6 -5 -4 -4 -4 -4 -4 -3 -3 ----------- Run | Yrd Mat Min Exi Min Mat Gar Mat Gar Fac Fac Gar Fac Fac Ext Cet Arc Hub Res Tes Matter Collected 4332 | 352 100 45 . 40 446 276 121 240 225 224 351 20 220 445 220 12 138 842 15 Remotely . | . . . . . . . . . . . . . . . . . . . . Salvage Created 18310 | 213 935 294 . 259 2247 1018 915 1055 1324 1093 1812 193 1598 1699 369 36 1016 2222 12 Parts 753 | 12 46 15 . 9 132 46 43 60 64 35 70 6 58 42 14 . 37 64 . Haulers Intercepted 13 | . 2 . . . 6 . 2 . . . . . 2 . . . 1 . . Recyclers Shooed 18 | . 1 . . 1 7 . 1 . . 2 . . 3 1 . . 1 1 . Parts Field Recycled . | . . . . . . . . . . . . . . . . . . . . Retrieved Matter . | . . . . . . . . . . . . . . . . . . . . Parts Self-Destructed . | . . . . . . . . . . . . . . . . . . . . Prevented . | . . . . . . . . . . . . . . . . . . . . Kills | -11 -10 -10 -10 -9 -8 -8 -8 -8 -7 -6 -6 -5 -4 -4 -4 -4 -4 -3 -3 ------- Run | Yrd Mat Min Exi Min Mat Gar Mat Gar Fac Fac Gar Fac Fac Ext Cet Arc Hub Res Tes Combat Hostiles Destroyed 250 | . 17 6 . 2 27 24 11 28 22 7 34 3 13 14 5 . 6 30 1 Guns 169 | . 16 6 . 2 14 17 9 21 17 7 18 2 9 9 1 . . 20 1 Cannons 31 | . . . . . 3 . . . . . 8 1 3 1 3 . 4 8 . AOE 18 | . . . . . 7 4 . 6 . . 1 . . . . . . . . Classes Destroyed 22 | 3 4 . . . 5 2 . 2 2 . 1 . . . . . . 2 1 Worker 26 | 2 2 . . . 7 . 5 . 2 5 . . . . . . 2 1 . Builder 12 | . . . . . 3 . . . 2 1 . . 2 2 . . 2 . . Tunneler 8 | 4 2 . . . 2 . . . . . . . . . . . . . . Hauler 13 | . 2 . . . 6 . 2 . . . . . 2 . . . 1 . . Recycler 35 | 1 3 1 . 3 9 . 2 . 1 4 . . 4 4 . . 3 . . Mechanic 4 | . . . . . 1 . . . 1 1 . . . . . . . 1 . Operator 3 | . . . . . 2 . . . . . . . . 1 . . . . . Watcher 14 | . 2 . . . 4 . 1 . 2 . 3 . 1 . . . 1 . . Swarmer 62 | . 9 1 . 1 11 8 5 8 3 . 13 . . . . . . 3 . Cutter 2 | . . . . . . . . 2 . . . . . . . . . . . Saboteur 1 | . . . . . . . . . . . . . . . . . . . 1 Grunt 92 | . 8 5 . 1 9 8 2 13 8 3 12 . 2 7 . . 5 9 . Brawler 5 | . . . . . . 2 1 . . . 2 . . . . . . . . Duelist 3 | . . . . . . 1 . . 1 . . . . . . . . 1 . Protector 1 | . . . . . . . . . 1 . . . . . . . . . . Sentry 29 | . . . . . 6 4 3 2 2 1 4 1 . 3 . . 1 2 . Demolisher 4 | . . . . . . . . . . . . . . . . . . 4 . Hunter 14 | . . . . . 1 1 . . . . 2 . 2 4 . . . 4 . Programmer 24 | . . . . . . . . 3 5 3 . 2 9 . . . . 2 . Heavy 2 | . . . . . . . . . 2 . . . . . . . . . . Behemoth 1 | . . . . . . . . . . . 1 . . . . . . . . Cetus Guard 5 | . . . . . . . . . . . . . . . 5 . . . . Striker 5 | . . . . . . . . . . . . . . . . . . 5 . Savage 1 | . . . . . . . . . . . . . . 1 . . . . . Best Kill Streak 12 | 4 6 2 . 2 12 5 4 8 6 4 6 2 5 3 3 . 7 6 1 Combat Bots Only 8 | . 5 2 . 1 7 5 3 8 4 4 6 2 2 3 3 . 3 6 1 Max Kills in Single Turn 4 | 1 2 1 . 1 4 2 1 3 2 2 1 1 1 1 1 . 4 2 1 Gunslinging 1 | . 1 . . . 1 . . 1 . 1 . . . . . . . 1 . Exploded 3 | . . . . . 3 2 . 3 . . 1 . . . . . . . . Melee . | . . . . . . . . . . . . . . . . . . . . Uniques/NPCs Destroyed . | . . . . . . . . . . . . . . . . . . . . Combat | -11 -10 -10 -10 -9 -8 -8 -8 -8 -7 -6 -6 -5 -4 -4 -4 -4 -4 -3 -3 -------- Run | Yrd Mat Min Exi Min Mat Gar Mat Gar Fac Fac Gar Fac Fac Ext Cet Arc Hub Res Tes Hostile Shots Fired 1911 | . 64 43 . 2 102 48 66 96 135 55 276 18 93 168 59 5 128 492 61 Missed 606 | . 18 13 . . 33 13 21 30 47 22 103 6 23 63 23 3 30 142 16 Hits 1305 | . 46 30 . 2 69 35 45 66 88 33 173 12 70 105 36 2 98 350 45 Melee 54 | . . . . . . . 1 5 5 . . . . . . . . 38 5 Projectile 1251 | . 46 30 . 2 69 35 44 61 83 33 173 12 70 105 36 2 98 312 40 AOE 10 | . . . . . . . . 2 1 . . . . . . . . 7 . Critical Strikes 80 | . . 1 . . 4 3 3 2 5 1 1 . 5 9 7 . 13 20 6 Actively Blocked 58 | . . . . . . . . . . 1 1 . 5 9 7 . 13 20 2 Part Disruptions 2 | . . . . . . . . . . . . . 1 . . . . 1 . Damage Taken 25930 | . 419 356 . 14 868 571 678 955 1603 405 2178 239 1337 2110 751 1042 2618 8636 1150 Core 2834 | . 91 52 . . 87 113 101 77 169 54 187 . 98 110 140 72 168 937 378 Absorbed by Shields 220 | . 65 13 . . 24 . . . . . . . . 51 67 . . . . Redirected to Shielding 119 | . . . . . . . . . . . . . . 15 39 . 65 . . Ignored by Resistances 1253 | . . . . . . . . . . 4 256 18 50 351 156 4 15 399 . Regen/Repaired (Parts) 300 | . . . . . . . 88 . 212 . . . . . . . . . . Core Remaining (%) 66 | 100 . . . 42 . . . 31 75 . 71 100 . . . . 48 . . Volleys Fired 1194 | 15 88 26 . 19 126 148 41 82 76 43 173 11 89 85 24 3 29 112 4 Largest 3 | 2 2 2 . 2 3 3 3 3 3 3 3 3 3 3 3 3 3 3 3 Hottest 300 | 90 90 105 . 105 168 168 168 182 173 173 266 266 266 251 263 214 219 282 300 Shots Fired 3261 | 29 175 48 . 36 361 433 124 233 217 127 487 33 263 246 67 8 66 302 6 Gun 2818 | 29 175 48 . 34 312 428 124 228 217 127 367 22 176 194 43 5 43 240 6 Cannon 424 | . . . . . 42 . . . . . 120 11 87 52 24 3 23 62 . Launcher 17 | . . . . . 7 5 . 5 . . . . . . . . . . . Special 2 | . . . . 2 . . . . . . . . . . . . . . . Kinetic . | . . . . . . . . . . . . . . . . . . . . Thermal 3153 | 29 175 48 . 36 354 428 124 228 217 127 415 33 263 246 67 8 66 283 6 Explosive . | . . . . . . . . . . . . . . . . . . . . Electromagnetic 108 | . . . . . 7 5 . 5 . . 72 . . . . . . 19 . Robot Hit Streak 23 | 15 17 10 . 6 11 15 14 17 23 17 22 13 17 16 19 7 8 18 5 Robot Miss Streak 9 | 3 9 4 . 3 8 6 7 3 3 2 6 1 4 6 2 1 4 5 3 Penetration Max . | . . . . . . . . . . . . . . . . . . . . Secondary Targets 29 | . 1 1 . . 2 3 . 5 4 1 5 . . 2 . . . 5 . Max Gunslinging Chain 1 | . 1 1 . . 1 1 . 1 1 1 1 . . 1 . . . 1 . Shots Hit Robots 1530 | 21 94 27 . 21 195 79 72 87 148 92 179 21 97 127 39 7 40 181 3 Core Hits 651 | 8 44 13 . 8 89 39 28 44 62 36 70 7 32 60 13 3 25 68 2 Critical Kills 7 | . . . . . . . . . . . 2 . 2 2 . . 1 . . Critical Parts Destroyed 4 | . . . . . . . . . . . 1 1 2 . . . . . . Critical Strikes 120 | 1 8 . . 3 9 8 9 10 16 11 13 1 5 14 4 . 1 7 . Burn 105 | 1 8 . . 3 9 8 9 10 16 11 6 . 1 12 4 . . 7 . Meltdown 5 | . . . . . . . . . . . 2 . 1 1 . . 1 . . Destroy 6 | . . . . . . . . . . . 1 1 3 1 . . . . . Corrupt 4 | . . . . . . . . . . . 4 . . . . . . . . Melee Attacks 17 | . . . . . . 3 . 5 9 . . . . . . . . . . Impact . | . . . . . . . . . . . . . . . . . . . . Slashing 17 | . . . . . . 3 . 5 9 . . . . . . . . . . Piercing . | . . . . . . . . . . . . . . . . . . . . Sneak Attacks . | . . . . . . . . . . . . . . . . . . . . Combat Hostiles . | . . . . . . . . . . . . . . . . . . . . Follow-up Attacks . | . . . . . . . . . . . . . . . . . . . . Damage Inflicted 35140 | 246 1170 354 . 276 3727 1568 1280 1843 2642 1669 4059 651 3530 3163 1216 222 1918 5504 102 Guns 25900 | 246 1170 354 . 276 2552 1413 1280 1483 2642 1669 2872 369 2039 2386 601 101 719 3626 102 Cannons 7216 | . . . . . 430 . . . . . 1093 282 1491 758 615 121 559 1867 . Explosions 1992 | . . . . . 745 155 . 360 . . 94 . . . . . 638 . . Melee . | . . . . . . . . . . . . . . . . . . . . Ramming 32 | . . . . . . . . . . . . . . 19 . . 2 11 . Kinetic . | . . . . . . . . . . . . . . . . . . . . Thermal 32507 | 246 1170 354 . 276 3424 1413 1280 1483 2642 1669 3184 651 3530 3144 1216 222 1283 5218 102 Explosive . | . . . . . . . . . . . . . . . . . . . . Electromagnetic 2601 | . . . . . 303 155 . 360 . . 875 . . . . . 633 275 . Impact . | . . . . . . . . . . . . . . . . . . . . Slashing . | . . . . . . . . . . . . . . . . . . . . Piercing . | . . . . . . . . . . . . . . . . . . . . Highest Corruption 64 | . . . . . 2 2 5 5 2 1 1 2 8 16 28 40 64 11 11 Average Corruption 6 | . . . . . 2 2 2 5 1 1 1 1 5 11 25 28 41 8 11 Corruption Purged 2 | . . . . . . . . . 2 . . . . . . . . . . Corruption Blocked . | . . . . . . . . . . . . . . . . . . . . Effects 457 | . . . . . 20 45 30 45 9 5 24 4 37 63 41 6 43 76 9 Message Errors 104 | . . . . . 3 6 9 15 2 1 9 2 5 13 9 2 10 18 . Matter Fused 115 | . . . . . 11 12 9 8 1 2 4 . 10 11 14 1 5 23 4 Heat Flow Errors 52 | . . . . . 1 5 1 4 2 1 4 . 4 8 4 2 6 8 2 Energy Discharges 40 | . . . . . 2 5 2 5 1 . 1 . 4 8 3 . 3 6 . Parts Rejected 7 | . . . . . . 1 2 . . . 1 . . 1 1 . 1 . . Parts Fused 6 | . . . . . . 1 1 . . . . . . 1 . . 2 1 . Data Loss (minor) 47 | . . . . . 1 6 1 8 1 1 2 . 6 5 3 . 3 9 1 Data Loss (major) 28 | . . . . . 1 5 2 2 1 . 1 2 2 7 2 . . 2 1 Misfires 16 | . . . . . . 1 1 2 . . 2 . 3 3 2 . . 2 . Alerts 8 | . . . . . 1 1 2 . 1 . . . . . 1 . 1 1 . Misdirections 6 | . . . . . . . . . . . . . . 2 . . 3 . 1 Weapon Failures 28 | . . . . . . 2 . 1 . . . . 3 4 2 1 9 6 . Overload Shots . | . . . . . . . . . . . . . . . . . . . . Overflow Damage 350 | . . . . . 38 . . 2 . . 5 24 85 41 . 19 51 85 . Projectiles 269 | . . . . . . . . . . . . 24 85 41 . 19 15 85 . Explosions 81 | . . . . . 38 . . 2 . . 5 . . . . . 36 . . Melee . | . . . . . . . . . . . . . . . . . . . . Knockbacks 1 | . . . . . . . . . . . . . . . . . . 1 . Impact 1 | . . . . . . . . . . . . . . . . . . 1 . Kinetic . | . . . . . . . . . . . . . . . . . . . . Secondary . | . . . . . . . . . . . . . . . . . . . . Self-Inflicted Damage 267 | . . . . . 23 50 . 52 . . 40 . . . . . 102 . . Shots 7 | . . . . . 1 2 . 2 . . 1 . . . . . 1 . . Rammed 5 | . . . . . . . . . . . . . . 3 . . 1 1 . Targets Rammed 5 | . . . . . . . . . . . . . . 3 . . 1 1 . Kicked . | . . . . . . . . . . . . . . . . . . . . Crushed . | . . . . . . . . . . . . . . . . . . . . Highest Temperature 566 | 150 214 276 . 256 210 229 159 318 177 61 220 85 443 42 . . . 566 181 Average Temperature 69 | 61 50 102 . 108 27 63 50 77 52 15 39 44 111 20 . . . 108 76 Received Heat Transfer 3616 | . 168 180 . . 372 234 270 270 180 60 591 9 66 268 72 . 117 645 114 Effects 18 | . 1 2 . . . . . 5 . . . . 2 . . . . 8 . Shutdowns 2 | . . . . . . . . . . . . . . . . . . 2 . Energy Bleed 3 | . . . . . . . . 2 . . . . 1 . . . . . . Interference 9 | . 1 2 . . . . . 3 . . . . . . . . . 3 . Damage (minor) 1 | . . . . . . . . . . . . . 1 . . . . . . Damage (major) 3 | . . . . . . . . . . . . . . . . . . 3 . Siege Activations . | . . . . . . . . . . . . . . . . . . . . Martial Activations . | . . . . . . . . . . . . . . . . . . . . Shielding Activations . | . . . . . . . . . . . . . . . . . . . . Robots Disrupted . | . . . . . . . . . . . . . . . . . . . . Combat Hostiles . | . . . . . . . . . . . . . . . . . . . . Robots Corrupted 3 | . . . . . . . . . . . 1 . . . . . 2 . . Combat Hostiles 2 | . . . . . . . . . . . 1 . . . . . 1 . . Parts Fried 16 | . . . . . 1 1 . 3 . . 5 . . . 1 . 3 2 . Impact Corruptions . | . . . . . . . . . . . . . . . . . . . . Robots Melted 34 | . 1 . . 1 3 3 2 1 5 2 6 . 2 4 1 . 1 2 . Combat Hostiles 30 | . 1 . . . 3 3 2 1 5 . 6 . 1 4 1 . 1 2 . Parts Melted 205 | 2 8 2 . 2 15 11 8 9 30 16 20 1 16 25 8 2 6 24 . Heat Transferred 63858 | 731 3680 844 . 854 7426 3344 3441 3811 5949 4144 6408 881 3726 6866 2271 272 1580 7455 175 Parts Sabotaged 4 | . . . . . . . . . . . . . . . . . . . 4 Parts Stolen . | . . . . . . . . . . . . . . . . . . . . Parts Stripped . | . . . . . . . . . . . . . . . . . . . . Power Chain Reactions 9 | . . . . . 2 2 . 1 . . 2 . . . . . 2 . . Alert | -11 -10 -10 -10 -9 -8 -8 -8 -8 -7 -6 -6 -5 -4 -4 -4 -4 -4 -3 -3 ------- Run | Yrd Mat Min Exi Min Mat Gar Mat Gar Fac Fac Gar Fac Fac Ext Cet Arc Hub Res Tes Maximum Alert Level 5 | . . . . . 2 5 4 5 3 2 5 4 2 1 . 2 2 1 5 Low Security (%) 37 | 100 100 100 . 100 75 . . . . . 6 . 9 78 100 51 84 91 . Level 1 18 | . . . . . 16 20 . . . 87 3 . 88 21 . 39 11 8 . Level 2 6 | . . . . . 7 17 . 2 . 12 20 . 1 . . 8 3 . . Level 3 21 | . . . . . . 17 86 25 100 . 27 79 . . . . . . . Level 4 8 | . . . . . . 16 13 43 . . 21 20 . . . . . . . Level 5 6 | . . . . . . 26 . 29 . . 20 . . . . . . . . High Security . | . . . . . . . . . . . . . . . . . . . . Max Security . | . . . . . . . . . . . . . . . . . . . 99 Peak Influence 2320 | 10 133 103 . 79 497 2320 1147 1753 1034 505 2199 1161 417 304 192 461 416 220 1620 Initial 1154 | . . 40 . . 1 321 1131 685 919 505 163 1154 417 162 164 34 119 164 30 Average 570 | 1 60 31 . 25 158 1124 1030 1288 895 310 1051 980 272 126 98 191 125 81 1593 Influence Increases 12970 | 35 567 265 . 199 1034 2049 508 1118 861 315 2106 101 573 1007 299 469 588 856 20 Destroy 0b10 Robot/C 5880 | . 340 200 . 120 540 580 260 580 480 140 700 60 260 520 160 200 120 600 20 Destroy 0b10 Robot/NC 625 | 35 55 5 . 15 170 5 65 . 50 55 15 . 45 35 10 10 45 10 . Destroy Leader 998 | . 78 40 . 30 160 20 86 40 154 50 30 20 66 80 . . 14 130 . Allied During Kill 504 | . . 20 . 11 . 14 4 9 14 . 15 . . 114 93 210 . . . Successful Hack 282 | . 47 . . 6 31 16 15 14 45 55 . . 8 21 . . . 24 . Disable Machine 645 | . . . . . 90 30 45 . 30 15 30 15 30 105 30 15 180 30 . Anti-Garrison Action 2700 | . . . . . . 1250 . 350 . . 1100 . . . . . . . . Destroy Structure 856 | . 2 . . 2 28 89 3 80 13 . 141 6 164 42 6 34 214 32 . Lose Combat Pursuer 480 | . 45 . . 15 15 45 30 45 75 . 75 . . 90 . . 15 30 . Influence Decreases 12970 | 35 461 371 . 194 544 224 1774 419 1582 1114 140 1447 1094 1045 507 212 618 1115 74 Entered New Map 5463 | . . 66 . . 4 174 1189 369 834 527 70 1045 436 170 130 52 224 149 24 Time Decay 6030 | 35 451 265 . 194 520 . 565 . 628 577 . 342 618 528 327 60 294 626 . Lost Part 927 | . . 20 . . 20 30 . 50 40 10 70 . 40 87 50 20 100 340 50 Lost Ally 550 | . 10 20 . . . 20 20 . 80 . . 60 . 260 . 80 . . . Squads Dispatched 69 | . 3 . . . 6 . 6 . 11 5 . 7 8 5 . . 1 5 12 Investigation 11 | . 2 . . . 1 . 2 . . 1 . 1 . 3 . . . 1 . Extermination 14 | . . . . . . . . . 5 3 . 1 4 . . . 1 . . Reinforcement 17 | . 1 . . . 2 . . . 4 . . . 4 2 . . . 4 . Assault 17 | . . . . . 1 . 1 . 2 . . 1 . . . . . . 12 Garrison 10 | . . . . . 2 . 3 . . 1 . 4 . . . . . . . Intercept . | . . . . . . . . . . . . . . . . . . . . Searches Triggered . | . . . . . . . . . . . . . . . . . . . . Construction Impeded 5 | . . . . . 1 . . . 1 . . . 2 1 . . . . . Haulers Reinforced 2 | . . . . . . . . . . . . . 1 . . . . 1 . Active Scanning Responses . | . . . . . . . . . . . . . . . . . . . . Cargo Convoy Interrupts 1 | . . . . . . . . . 1 . . . . . . . . . . Stealth | -11 -10 -10 -10 -9 -8 -8 -8 -8 -7 -6 -6 -5 -4 -4 -4 -4 -4 -3 -3 --------- Run | Yrd Mat Min Exi Min Mat Gar Mat Gar Fac Fac Gar Fac Fac Ext Cet Arc Hub Res Tes Distress Signals 16 | . 2 . . . 3 . . . 1 . 1 . 1 2 2 . 1 3 . Communications Jammed . | . . . . . . . . . . . . . . . . . . . . Distress Signals . | . . . . . . . . . . . . . . . . . . . . Times Spotted 426 | . 29 10 . 7 38 28 22 32 38 11 38 3 17 37 11 10 17 57 21 Peak Tracking Total 17 | . 4 3 . 3 6 4 7 7 5 4 5 3 5 8 5 15 7 9 17 Tactical Retreats 26 | . 2 . . 1 1 3 2 3 3 . 5 . . 3 . . 1 2 . Traps | -11 -10 -10 -10 -9 -8 -8 -8 -8 -7 -6 -6 -5 -4 -4 -4 -4 -4 -3 -3 ------- Run | Yrd Mat Min Exi Min Mat Gar Mat Gar Fac Fac Gar Fac Fac Ext Cet Arc Hub Res Tes Traps Triggered 35 | . 1 . . . 2 7 4 1 . 6 5 2 2 3 . . . 2 . Indirectly 3 | . . . . . . 2 . 1 . . . . . . . . . . . Trap Hack Attempts . | . . . . . . . . . . . . . . . . . . . . Triggered . | . . . . . . . . . . . . . . . . . . . . Disarmed . | . . . . . . . . . . . . . . . . . . . . Reprogrammed . | . . . . . . . . . . . . . . . . . . . . Reused . | . . . . . . . . . . . . . . . . . . . . Traps Extracted . | . . . . . . . . . . . . . . . . . . . . Installed . | . . . . . . . . . . . . . . . . . . . . Triggered . | . . . . . . . . . . . . . . . . . . . . Machines | -11 -10 -10 -10 -9 -8 -8 -8 -8 -7 -6 -6 -5 -4 -4 -4 -4 -4 -3 -3 ---------- Run | Yrd Mat Min Exi Min Mat Gar Mat Gar Fac Fac Gar Fac Fac Ext Cet Arc Hub Res Tes Machines Disabled 59 | . . . . . 6 8 3 4 2 1 6 1 2 8 3 1 12 2 . Max in Single Turn 9 | . . . . . 3 2 1 1 1 1 1 1 1 1 2 . 9 1 . Garrison Access 2 | . . . . . . . . . . . . . . . . . . 2 . Garrison Relay 12 | . . . . . . 4 . 4 . . 4 . . . . . . . . Phase Generator 1 | . . . . . . 1 . . . . . . . . . . . . . Network Hub 1 | . . . . . . . . . . . . . . . . . 1 . . Machines Repaired . | . . . . . . . . . . . . . . . . . . . . Machines Dismantled . | . . . . . . . . . . . . . . . . . . . . Machines Sabotaged . | . . . . . . . . . . . . . . . . . . . . Overloaded Fab Kills . | . . . . . . . . . . . . . . . . . . . . Hacking | -11 -10 -10 -10 -9 -8 -8 -8 -8 -7 -6 -6 -5 -4 -4 -4 -4 -4 -3 -3 --------- Run | Yrd Mat Min Exi Min Mat Gar Mat Gar Fac Fac Gar Fac Fac Ext Cet Arc Hub Res Tes Machines Accessed 83 | . 8 . 1 1 7 4 10 4 4 7 3 3 5 15 2 1 1 7 . Terminals 52 | . 6 . . 1 5 4 4 4 1 2 3 2 3 14 2 . 1 . . Fabricators 4 | . . . . . . . . . 1 1 . . 1 . . . . 1 . Repair Stations 4 | . . . . . . . 2 . 1 1 . . . . . . . . . Recycling Units 9 | . 2 . . . 1 . 1 . 1 . . . . 1 . . . 3 . Scanalyzers 6 | . . . . . . . 2 . . 2 . . 1 . . . . 1 . Garrison Access 6 | . . . . . 1 . 1 . . 1 . 1 . . . . . 2 . Total Hacks 208 | . 21 . 1 3 21 7 34 9 13 13 3 6 10 27 2 25 2 11 . Successful 113 | . 11 . 1 1 14 1 24 2 8 5 1 1 5 5 1 25 . 8 . Failed 94 | . 9 . . 2 7 6 10 7 5 8 2 5 5 22 1 . 2 3 . Catastrophic 26 | . . . . . 2 2 1 2 1 2 2 2 3 8 . . . 1 . Database Lockouts 1 | . 1 . . . . . . . . . . . . . . . . . . Manual 81 | . 18 . 1 3 14 . 10 . 5 5 . 5 5 8 1 . 2 4 . Terminals 115 | . 17 . . 3 17 7 12 9 3 5 3 5 5 25 2 . 2 . . Fabricators 7 | . . . . . . . . . 3 1 . . 1 . . . . 2 . Repair Stations 14 | . . . . . . . 6 . 5 3 . . . . . . . . . Recycling Units 19 | . 4 . . . 3 . 2 . 2 . . . . 2 . . . 6 . Scanalyzers 21 | . . . . . . . 13 . . 3 . . 4 . . . . 1 . Garrison Access 6 | . . . . . 1 . 1 . . 1 . 1 . . . . . 2 . Terminal Hacks 48 | . 2 . 1 1 6 1 2 2 . 1 1 . . 5 1 25 . . . Record 27 | . . . . . 1 . . . . . . . . . 1 25 . . . Robot Analysis 5 | . 1 . . 1 2 . 1 . . . . . . . . . . . . Prototype ID Bank 1 | . 1 . . . . . . . . . . . . . . . . . . Open Door 5 | . . . . . . . . . . . . . . 5 . . . . . Branch Access Points 1 | . . . . . . . . . . 1 . . . . . . . . . Emergency Access Points 1 | . . . . . . . . 1 . . . . . . . . . . . Locate Traps 2 | . . . . . 1 . 1 . . . . . . . . . . . . Recall Investigation 2 | . . . . . 2 . . . . . . . . . . . . . . Garrison Registry 2 | . . . . . . . . 1 . . 1 . . . . . . . . Security Stations 1 | . . . . . . 1 . . . . . . . . . . . . . Proto ID Catalog 1 | . . . 1 . . . . . . . . . . . . . . . . Fabricator Hacks 2 | . . . . . . . . . 1 . . . . . . . . 1 . Network Status 2 | . . . . . . . . . 1 . . . . . . . . 1 . Repair Station Hacks 9 | . . . . . . . 4 . 4 1 . . . . . . . . . Scan Component 5 | . . . . . . . 2 . 2 1 . . . . . . . . . Repair 4 | . . . . . . . 2 . 2 . . . . . . . . . . Recycling Unit Hacks 8 | . 2 . . . 2 . 1 . . . . . . . . . . 3 . Report Inventory 7 | . 2 . . . 1 . 1 . . . . . . . . . . 3 . Retrieve Components 1 | . . . . . 1 . . . . . . . . . . . . . . Scanalyzer 19 | . . . . . . . 13 . . 2 . . 4 . . . . . . Insert Component 9 | . . . . . . . 5 . . 2 . . 2 . . . . . . Analyze 10 | . . . . . . . 8 . . . . . 2 . . . . . . Garrison Access Hacks 6 | . . . . . 1 . 1 . . 1 . 1 . . . . . 2 . Unlock Access 4 | . . . . . 1 . 1 . . 1 . 1 . . . . . . . Seal Access 2 | . . . . . . . . . . . . . . . . . . 2 . Unauthorized Hacks 21 | . 7 . . . 5 . 3 . 3 . . . 1 . . . . 2 . Terminals 13 | . 5 . . . 4 . 2 . 1 . . . 1 . . . . . . Assimilate 1 | . 1 . . . . . . . . . . . . . . . . . . Botnet 10 | . 3 . . . 3 . 2 . 1 . . . 1 . . . . . . Operators 2 | . 1 . . . 1 . . . . . . . . . . . . . . Fabricators 2 | . . . . . . . . . 1 . . . . . . . . 1 . Liberate 2 | . . . . . . . . . 1 . . . . . . . . 1 . Repair Stations . | . . . . . . . . . . . . . . . . . . . . Recycling Units 6 | . 2 . . . 1 . 1 . 1 . . . . . . . . 1 . Reject 6 | . 2 . . . 1 . 1 . 1 . . . . . . . . 1 . Scanalyzers . | . . . . . . . . . . . . . . . . . . . . Garrison Access . | . . . . . . . . . . . . . . . . . . . . Data Cores Recovered . | . . . . . . . . . . . . . . . . . . . . Used . | . . . . . . . . . . . . . . . . . . . . Hacking Detections 69 | . 8 . . 1 7 4 8 3 4 7 2 3 5 11 1 . 1 4 . Full Trace Events 11 | . 1 . . . 1 2 1 1 . 1 . 1 . 3 . . . . . Feedback Events . | . . . . . . . . . . . . . . . . . . . . Feedback Blocked . | . . . . . . . . . . . . . . . . . . . . Robot Schematics Acquired . | . . . . . . . . . . . . . . . . . . . . Robots Built . | . . . . . . . . . . . . . . . . . . . . Authchips . | . . . . . . . . . . . . . . . . . . . . Time . | . . . . . . . . . . . . . . . . . . . . Total Robot Build Rating . | . . . . . . . . . . . . . . . . . . . . Part Schematics Acquired 7 | . . . . . . . 5 . . . . . 2 . . . . . . Parts Built . | . . . . . . . . . . . . . . . . . . . . Authchips . | . . . . . . . . . . . . . . . . . . . . Time . | . . . . . . . . . . . . . . . . . . . . Total Part Build Rating . | . . . . . . . . . . . . . . . . . . . . Parts Repaired 4 | . . . . . . . 2 . 2 . . . . . . . . . . Time 201 | . . . . . . . 112 . 89 . . . . . . . . . . Parts Recycled . | . . . . . . . . . . . . . . . . . . . . Recycled Matter . | . . . . . . . . . . . . . . . . . . . . Retrieved Matter . | . . . . . . . . . . . . . . . . . . . . Retrieved Components 3 | . . . . . 3 . . . . . . . . . . . . . . Parts Scanalyzed 7 | . . . . . . . 5 . . . . . 2 . . . . . . Part Schematics Acquired 7 | . . . . . . . 5 . . . . . 2 . . . . . . Parts Damaged 1 | . . . . . . . 1 . . . . . . . . . . . . Bothacking | -11 -10 -10 -10 -9 -8 -8 -8 -8 -7 -6 -6 -5 -4 -4 -4 -4 -4 -3 -3 ------------ Run | Yrd Mat Min Exi Min Mat Gar Mat Gar Fac Fac Gar Fac Fac Ext Cet Arc Hub Res Tes Used RIF Installer 4 | . . . . . . 1 . 1 . . 2 . . . . . . . . Code Merge 1 | . . . . . . . . . . . 1 . . . . . . . . Robot Detection 1 | . . . . . . . . . . . 1 . . . . . . . . Program Shield 1 | . . . . . . . . 1 . . . . . . . . . . . Robots Hacked . | . . . . . . . . . . . . . . . . . . . . Non-combat . | . . . . . . . . . . . . . . . . . . . . Combat . | . . . . . . . . . . . . . . . . . . . . Robot Hacks Applied . | . . . . . . . . . . . . . . . . . . . . Relay Couplers Released 50 | . . . . . . 14 . 18 . . 18 . . . . . . . . Machine Destruction 50 | . . . . . . 14 . 18 . . 18 . . . . . . . . Attached 3 | . . . . . . 1 . 2 . . . . . . . . . . . Fabnet Peak Effective % . | . . . . . . . . . . . . . . . . . . . . Robots Rewired 7 | . . . . . . . . . . . 3 . . 4 . . . . . Allies Hacked . | . . . . . . . . . . . . . . . . . . . . Hacks Repelled . | . . . . . . . . . . . . . . . . . . . . Allies | -11 -10 -10 -10 -9 -8 -8 -8 -8 -7 -6 -6 -5 -4 -4 -4 -4 -4 -3 -3 -------- Run | Yrd Mat Min Exi Min Mat Gar Mat Gar Fac Fac Gar Fac Fac Ext Cet Arc Hub Res Tes Total Allies 39 | . 1 4 . . . 2 . 2 2 . 3 . . 20 5 . . . . Largest Group 9 | . 1 3 3 2 1 2 1 2 2 . 3 3 . 9 6 6 . . . Highest-Rated Group 639 | . 10 63 63 32 15 56 31 70 67 . 87 87 . 381 639 625 . . . Highest-Rated Ally 159 | . 10 31 31 16 15 31 31 39 39 . 29 29 . 159 159 152 . . . Total Orders . | . . . . . . . . . . . . . . . . . . . . Ally Attacks 301 | . . 20 . 23 1 26 7 8 20 . 5 9 . 94 38 50 . . . Total Damage 7146 | . . 201 . 268 16 371 126 124 321 . 57 113 . 1973 1204 2372 . . . Kills 50 | . . 4 . 4 . 5 2 1 4 . 1 . . 13 5 11 . . . Allies Corrupted 2 | . . . . . . . . . . . . . . 2 . . . . . Allies Melted . | . . . . . . . . . . . . . . . . . . . . Intel | -11 -10 -10 -10 -9 -8 -8 -8 -8 -7 -6 -6 -5 -4 -4 -4 -4 -4 -3 -3 ------- Run | Yrd Mat Min Exi Min Mat Gar Mat Gar Fac Fac Gar Fac Fac Ext Cet Arc Hub Res Tes Active Infowar (turns) 1495 | 10 544 . . . . . . . . 810 . . . . . . . 131 . Optics 857 | . . . . . . . . . . 726 . . . . . . . 131 . Seismic 554 | 10 544 . . . . . . . . . . . . . . . . . . Machine Analysis 84 | . . . . . . . . . . 84 . . . . . . . . . Robot Analysis Total 5 | . 1 . . 1 2 . 1 . . . . . . . . . . . . Derelict Logs Recovered 2 | . . 1 . 1 . . . . . . . . . . . . . . . Drone Launches . | . . . . . . . . . . . . . . . . . . . . Drone Recoveries . | . . . . . . . . . . . . . . . . . . . . Exploration | -11 -10 -10 -10 -9 -8 -8 -8 -8 -7 -6 -6 -5 -4 -4 -4 -4 -4 -3 -3 ------------- Run | Yrd Mat Min Exi Min Mat Gar Mat Gar Fac Fac Gar Fac Fac Ext Cet Arc Hub Res Tes Turns Passed 28234 | 170 1531 814 423 568 2412 3070 1690 1726 2173 1762 3002 764 2077 1576 774 133 656 2685 228 Spaces Moved 14157 | 113 1048 542 301 376 1199 1481 740 814 884 888 1433 461 990 690 395 73 294 1326 109 Core 44 | 9 . . . . . . . . . . . . . . . . . . 35 Treads 10181 | . . . . . . 1188 740 814 884 888 1433 461 990 690 395 73 294 1326 5 Legs 1481 | . . . . . 1119 293 . . . . . . . . . . . . 69 Wheels 2451 | 104 1048 542 301 376 80 . . . . . . . . . . . . . . Hover . | . . . . . . . . . . . . . . . . . . . . Flight . | . . . . . . . . . . . . . . . . . . . . Fastest Speed 50 | 50 100 130 130 130 120 120 170 165 165 163 155 155 152 152 160 160 160 145 50 Average Speed 153 | 96 113 130 130 130 120 167 170 168 186 165 162 155 152 158 165 160 160 159 162 Slowest Speed 305 | 100 115 130 130 130 130 260 170 250 250 250 250 155 156 160 240 160 160 305 260 Overloaded Moves . | . . . . . . . . . . . . . . . . . . . . Propulsion Burnouts . | . . . . . . . . . . . . . . . . . . . . Robots Hopped . | . . . . . . . . . . . . . . . . . . . . Potential Cave-ins 14 | . . . . . . . . . . . . . 6 8 . . . . . Cave-ins Triggered 1 | . . . . . . . . . . . . . . 1 . . . . . Exploration Rate (%) 54 | 5 98 96 71 50 65 99 54 88 16 20 85 13 15 64 89 81 29 33 20 Regions Visited 19 Branch Regions 8 Pre-discovered Areas 1 | . . . . 1 . . . . . . . . . . . . . . . Known Exits Taken 5 | . . . 1 . 1 . 1 . 1 1 . . . . . . . . . Unknown Exits Taken 11 | 1 1 1 . 1 . . . . . . . 1 1 1 1 1 1 1 . Scrap Searched 3 | . . 2 . 1 . . . . . . . . . . . . . . . Spaces Dug 77 | . . . . 1 . . . . 9 . . 1 55 9 . . . 2 . Terrain Destroyed 455 | . . . . 2 21 79 . 5 10 . 14 2 134 30 2 . 139 17 . Melee 9 | . . . . . . . . . 9 . . . . . . . . . . Projectile 195 | . . . . 2 . . . . 1 . 1 2 134 30 2 . 6 17 . AOE 251 | . . . . . 21 79 . 5 . . 13 . . . . . 133 . . Terrain Rammed . | . . . . . . . . . . . . . . . . . . . . Walls Destroyed . | . . . . . . . . . . . . . . . . . . . . Machines Disabled . | . . . . . . . . . . . . . . . . . . . . Actions | -11 -10 -10 -10 -9 -8 -8 -8 -8 -7 -6 -6 -5 -4 -4 -4 -4 -4 -3 -3 --------- Run | Yrd Mat Min Exi Min Mat Gar Mat Gar Fac Fac Gar Fac Fac Ext Cet Arc Hub Res Tes Total 18104 | 142 1232 606 333 417 1900 1735 1081 983 1230 1082 1737 485 1359 981 470 83 418 1677 153 Wait 1898 | . 55 28 30 14 493 59 286 55 215 103 52 10 243 99 13 3 71 50 19 Move 14136 | 112 1047 541 300 375 1198 1479 739 812 883 887 1431 460 989 689 394 72 294 1325 109 Hop . | . . . . . . . . . . . . . . . . . . . . Pick Up 172 | 8 18 2 1 2 17 6 4 4 12 9 16 1 5 5 8 1 5 43 5 Fast Attach 158 | 7 . 1 . . 18 2 3 6 7 19 14 2 9 16 10 . 6 30 8 Attach 83 | . 2 1 . 1 4 4 . 5 5 1 6 . 4 8 3 2 5 32 . Detach 43 | . . . . . 4 2 1 2 2 2 2 . 2 6 3 . 2 12 3 Swap 111 | . 7 3 1 3 9 11 3 7 12 4 7 . 5 15 3 1 1 19 . Drop 215 | . 15 4 1 3 31 3 4 2 9 14 26 1 13 13 12 1 5 53 5 Fire 1194 | 15 88 26 . 19 126 148 41 82 76 43 173 11 89 85 24 3 29 112 4 Melee 17 | . . . . . . 3 . 5 9 . . . . . . . . . . Ram . | . . . . . . . . . . . . . . . . . . . . Kick . | . . . . . . . . . . . . . . . . . . . . Crush 3 | . . . . . . . . . . . . . . 2 . . . 1 . Escape Stasis 24 | . . . . . . 18 . 3 . . 1 . . 2 . . . . . Rewire 50 | . . . . . . . . . . . 9 . . 41 . . . . . Trap . | . . . . . . . . . . . . . . . . . . . . Miscellaneous . | . . . . . . . . . . . . . . . . . . . . Route ------- -11/Scrapyard -10/Materials (discovered 5 exits: [*Mat x3] / [*Min x2]) -10/Mines (discovered 3 exits: [*Mat x2] / *Exi) -10/Exiles (discovered 2 exits: *Min x2) -9/Mines (discovered 2 exits: *Mat x2) -8/Materials (discovered 3 exits: *Fac x2 / Gar) -8/Garrison (discovered 3 exits: *Mat x3) -8/Materials (discovered 2 exits: *Fac / Gar) -8/Garrison (discovered 3 exits: *Fac x3) -7/Factory -6/Factory (discovered 3 exits: *Low x2 / Gar) -6/Garrison (discovered 3 exits: *Fac x3) -5/Factory (discovered 2 exits: *Fac / Gar) -4/Factory -4/Extension (discovered 2 exits: *Res / *Cet) -4/Cetus (discovered 2 exits: *Res / *Arc) -4/Archives -4/Hub_04(d) -3/Research (discovered 2 exits: [*Tes x2]) -3/Testing History --------- Turn | Location | Event 10 | -11/Scrapyard | Discovered new exit (range 15) 171 | -11/Scrapyard | Entered Materials 236 | -10/Materials | Discovered new exit (range 13) 236 | -10/Materials | Discovered new exit (range 13) 311 | -10/Materials | Build established: Mutant 437 | -10/Materials | Discovered new exit (range 14) 1228 | -10/Materials | Discovered new exit (range 14) 1584 | -10/Materials | Discovered new exit (range 10) 1589 | -10/Materials | Central database locked down 1702 | -10/Materials | Entered Mines 1836 | -10/Mines | Discovered new exit (range 7) 1904 | -10/Mines | Core integrity fell below 50% 1981 | -10/Mines | Assisted by bots powering up and referring to "LRC-V3" 1987 | -10/Mines | Build established: Scavenger-Mutant 2184 | -10/Mines | Escorted by a lone wolf Derelict 2312 | -10/Mines | Discovered new exit (range 15) 2437 | -10/Mines | Deemed a non-threat by the Exiles lab entrance 2438 | -10/Mines | Discovered new exit (range 5) 2516 | -10/Mines | Entered Exiles 2516 | -10/Exiles | Accompanied by 3 allies 2517 | -10/Exiles | Identified exit to Mines 2577 | -10/Exiles | Met 8R-AWN 2599 | -10/Exiles | Met EX-HEX 2682 | -10/Exiles | Met EX-DEC 2726 | -10/Exiles | Met EX-BIN 2746 | -10/Exiles | Aligned with FarCom system 2747 | -10/Exiles | Given EX-Vault access code 2778 | -10/Exiles | Opened EX-Vault 2789 | -10/Exiles | Found Longsword +1 2816 | -10/Exiles | Warned to stay clear of 0b10 Research branches 2939 | -10/Exiles | Left Exiles lab with Longsword +1 2939 | -10/Exiles | Entered Mines 2939 | -9/Mines | Accompanied by 2 allies 2940 | -9/Mines | Learned location of Storage (-7) 3139 | -9/Mines | Discovered new exit (range 13) 3183 | -9/Mines | Discovered new exit (range 5) 3353 | -9/Mines | Assembled infested the area 3358 | -9/Mines | Assisted by a Guerilla fighting off Assembled 3507 | -9/Mines | Entered Materials 3507 | -8/Materials | Accompanied by 1 ally 3507 | -8/Materials | Evolved 4 slots: Propulsion x1, Utility x2, Weapon x1 3508 | -8/Materials | Identified exit to Factory 4202 | -8/Materials | Build established: Tank 4599 | -8/Materials | Build established: Skirmisher 5340 | -8/Materials | Discovered exit to Factory (range 5) 5696 | -8/Materials | Destroyed 7 combat bots 5736 | -8/Materials | Garrison activated, responded to threat 5802 | -8/Materials | Identified exit to Garrison 5907 | -8/Materials | First assault squad dispatched 5919 | -8/Materials | Entered Garrison 6550 | -8/Garrison | Triggered checkpoint 6701 | -8/Garrison | Triggered checkpoint 6828 | -8/Garrison | Triggered checkpoint 6853 | -8/Garrison | Triggered checkpoint 7082 | -8/Garrison | Triggered checkpoint 7135 | -8/Garrison | Garrison Relay disabled 7330 | -8/Garrison | Rescued a captive Derelict 7331 | -8/Garrison | Rescued a captive Derelict 7460 | -8/Garrison | Discovered new exit (range 10) 7649 | -8/Garrison | Phase Generator disabled 7662 | -8/Garrison | Discovered new exit (range 12) 7731 | -8/Garrison | Learned Materials security intel 7785 | -8/Garrison | Garrison Relay disabled 7799 | -8/Garrison | Installed Relay Interface Framework 7956 | -8/Garrison | Discovered new exit (range 14) 8179 | -8/Garrison | Garrison Relay disabled 8455 | -8/Garrison | Garrison Relay disabled 8989 | -8/Garrison | Entered Materials 8989 | -8/Materials | Accompanied by 1 ally 9625 | -8/Materials | Repaired Broken Imp. Carbon-fiber Leg 9962 | -8/Materials | Discovered exit to Factory (range 14) 10303 | -8/Materials | Garrison activated, responded to threat 10361 | -8/Materials | Identified exit to Garrison 10419 | -8/Materials | Core integrity fell below 50% 10589 | -8/Materials | First assault squad dispatched 10638 | -8/Materials | Repaired Imp. Medium Laser 10679 | -8/Materials | Entered Garrison 10784 | -8/Garrison | Triggered checkpoint 10861 | -8/Garrison | Garrison Relay disabled 10994 | -8/Garrison | Triggered checkpoint 11145 | -8/Garrison | Triggered checkpoint 11184 | -8/Garrison | Destroyed 8 combat bots 11368 | -8/Garrison | Discovered exit to Factory (range 8) 11407 | -8/Garrison | Discovered exit to Factory (range 6) 11407 | -8/Garrison | Discovered exit to Factory (range 50) 11407 | -8/Garrison | Discovered exit to Factory (range 67) 11433 | -8/Garrison | Garrison Relay disabled 11817 | -8/Garrison | Rescued a captive Derelict 11829 | -8/Garrison | Rescued a captive Derelict 11902 | -8/Garrison | Garrison Relay disabled 12154 | -8/Garrison | Expanded RIF knowledge: Program Shield 12187 | -8/Garrison | Triggered checkpoint 12242 | -8/Garrison | Garrison Relay disabled 12405 | -8/Garrison | Entered Factory 12405 | -7/Factory | Accompanied by 2 allies 12405 | -7/Factory | Evolved 2 slots: Propulsion x1, Utility x1 12757 | -7/Factory | Repaired Imp. Medium Laser 12805 | -7/Factory | First assault squad dispatched 12814 | -7/Factory | Repaired Arm. Treads 14080 | -7/Factory | Cargo convoy interrupted 14106 | -7/Factory | Discovered new exit (range 11) 14433 | -7/Factory | Identified exit to Factory 14578 | -7/Factory | Entered another Factory area 14578 | -6/Factory | Evolved 2 slots: Utility x2 14968 | -6/Factory | Build established: Scavenger-Tank 15132 | -6/Factory | Identified exit to Lower Caves 15518 | -6/Factory | Build established: Scavenger-Skirmisher 16005 | -6/Factory | Garrison activated, responded to threat 16079 | -6/Factory | Identified exit to Garrison 16336 | -6/Factory | Build established: Scavenger-Tank 16340 | -6/Factory | Entered Garrison 16416 | -6/Garrison | Expanded RIF knowledge: Robot Detection 16534 | -6/Garrison | Triggered checkpoint 16592 | -6/Garrison | Garrison Relay disabled 16620 | -6/Garrison | Garrison Relay disabled 16784 | -6/Garrison | Triggered checkpoint 16825 | -6/Garrison | Triggered checkpoint 16874 | -6/Garrison | Lost 3 parts (2n1u) 17159 | -6/Garrison | Triggered checkpoint 17353 | -6/Garrison | Triggered checkpoint 17482 | -6/Garrison | Spotted B-75 Beast 17534 | -6/Garrison | Destroyed B-75 Beast 17593 | -6/Garrison | Found Adv. Powered Armor 17627 | -6/Garrison | Discovered new exit (range 15) 17798 | -6/Garrison | Discovered new exit (range 13) 17952 | -6/Garrison | Triggered checkpoint 17971 | -6/Garrison | Garrison Relay disabled 18342 | -6/Garrison | Build established: Tank 18347 | -6/Garrison | Triggered checkpoint 18476 | -6/Garrison | Garrison Relay disabled 18526 | -6/Garrison | Triggered checkpoint 18589 | -6/Garrison | Discovered new exit (range 55) 18589 | -6/Garrison | Discovered new exit (range 81) 18589 | -6/Garrison | Discovered new exit (range 12) 18625 | -6/Garrison | Expanded RIF knowledge: Code Merge 18854 | -6/Garrison | Build established: Scavenger-Tank 19256 | -6/Garrison | Spotted Executioner 19320 | -6/Garrison | Build established: Tank 19342 | -6/Garrison | Entered Factory 19342 | -5/Factory | Accompanied by 3 allies 19342 | -5/Factory | Evolved 2 slots: Utility x2 19642 | -5/Factory | First assault squad dispatched 19682 | -5/Factory | Identified exit to Garrison 19886 | -5/Factory | Garrison activated, responded to threat 19934 | -5/Factory | Lost 3 allies 20040 | -5/Factory | Discovered new exit (range 4) 20090 | -5/Factory | Garrison activated, responded to threat 20106 | -5/Factory | Entered another Factory area 20106 | -4/Factory | Evolved 2 slots: Power x1, Propulsion x1 20674 | -4/Factory | Build established: Scavenger-Tank 21385 | -4/Factory | Discovered new exit (range 15) 22183 | -4/Factory | Entered Extension 22345 | -4/Extension | Rescued a captive Derelict 22345 | -4/Extension | Rescued a captive Derelict 22364 | -4/Extension | Rescued a captive Derelict 22365 | -4/Extension | Rescued a captive Derelict 22384 | -4/Extension | Rescued a captive Derelict 22733 | -4/Extension | Disrupted transfer network 22886 | -4/Extension | Lost 9 allies 22978 | -4/Extension | Crushed by falling debris 22979 | -4/Extension | System corruption reached 10% 23017 | -4/Extension | Rescued a captive Derelict 23019 | -4/Extension | Rescued a captive Derelict 23090 | -4/Extension | Rescued a captive Derelict 23092 | -4/Extension | Rescued a captive Derelict 23261 | -4/Extension | Rescued a captive Derelict 23266 | -4/Extension | Rescued a captive Derelict 23420 | -4/Extension | Rescued a captive Derelict 23421 | -4/Extension | Rescued a captive Derelict 23440 | -4/Extension | Rescued a captive Derelict 23489 | -4/Extension | Lost 3 allies 23547 | -4/Extension | Rescued a captive Derelict 23689 | -4/Extension | Rescued A7 23723 | -4/Extension | Discovered new exit (range 10) 23725 | -4/Extension | Discovered new exit (range 6) 23752 | -4/Extension | Disrupted transfer network 23759 | -4/Extension | Entered Cetus 23759 | -4/Cetus | Accompanied by 1 ally (A7) 23764 | -4/Cetus | Acquired a Cetus Manufacturing Module code from A7 23782 | -4/Cetus | Spotted Cetus Guard 23782 | -4/Cetus | Spotted Cetus Guard 23783 | -4/Cetus | Spotted Cetus Guard 23783 | -4/Cetus | Spotted Cetus Guard 23795 | -4/Cetus | Destroyed Cetus Guard 23806 | -4/Cetus | Destroyed Cetus Guard 23810 | -4/Cetus | Allies destroyed Cetus Guard 23815 | -4/Cetus | Destroyed Cetus Guard 23846 | -4/Cetus | Lost 4 parts (2p2n) 24038 | -4/Cetus | Started Cetus Manufacturing Module 24059 | -4/Cetus | Escorted A7 to Cetus Mainframe 24063 | -4/Cetus | Manufactured an Enhanced Grunt 24088 | -4/Cetus | Manufactured an Enhanced Grunt 24113 | -4/Cetus | Manufactured an Enhanced Grunt 24138 | -4/Cetus | Manufactured an Enhanced Grunt 24156 | -4/Cetus | Build established: Scavenger-Mutant 24163 | -4/Cetus | Manufactured an Enhanced Grunt 24257 | -4/Cetus | Found a strange terminal 24286 | -4/Cetus | Discovered new exit (range 15) 24318 | -4/Cetus | Spotted Cetus Guard 24318 | -4/Cetus | Spotted Cetus Guard 24320 | -4/Cetus | Spotted Cetus Guard 24320 | -4/Cetus | Spotted Cetus Guard 24326 | -4/Cetus | Destroyed Cetus Guard 24339 | -4/Cetus | Allies destroyed Cetus Guard 24345 | -4/Cetus | Allies destroyed Cetus Guard 24348 | -4/Cetus | Destroyed Cetus Guard 24360 | -4/Cetus | Discovered new exit (range 16) 24375 | -4/Cetus | Met Revision 17 24477 | -4/Cetus | Build established: Scavenger-Tank 24509 | -4/Cetus | Security sweep announced 24533 | -4/Cetus | Entered Archives 24533 | -4/Archives | Accompanied by 6 allies (A7) 24538 | -4/Archives | Received a hacking code to weaken MAIN.C 24573 | -4/Archives | Met Zhirov 24579 | -4/Archives | Reinforcements dispatched to Archives 24601 | -4/Archives | Read partially decrypted archive contents 24601 | -4/Archives | Read partially decrypted archive contents 24601 | -4/Archives | Read partially decrypted archive contents 24624 | -4/Archives | Reinforcements dispatched to Archives 24626 | -4/Archives | Zhirov warped through subspace 24637 | -4/Archives | Discovered new exit (range 15) 24644 | -4/Archives | Zhirov detonated Archives 24663 | -4/Archives | System corruption reached 30% 24666 | -4/Archives | Entered Hub_04(d) 24669 | -4/Hub_04(d) | Lost 5 allies 25222 | -4/Hub_04(d) | Network Hub disabled 25248 | -4/Hub_04(d) | Spotted Lightning 25257 | -4/Hub_04(d) | Spotted Lightning 25259 | -4/Hub_04(d) | Spotted Lightning 25310 | -4/Hub_04(d) | Discovered new exit (range 6) 25312 | -4/Hub_04(d) | Core integrity fell below 50% 25322 | -4/Hub_04(d) | Entered Research 25322 | -3/Research | Evolved 2 slots: Propulsion x1, Utility x1 25352 | -3/Research | Lost 8 parts (2p1n3u2w) 25398 | -3/Research | Found Prototype Processor 25398 | -3/Research | Identified Spectral Analyzer 25517 | -3/Research | Lost 4 parts (1n2u1w) 25522 | -3/Research | Revision forces began assault on 0b10 25535 | -3/Research | Met up with Revision 17++ 25680 | -3/Research | Build established: Scavenger-Mutant 26022 | -3/Research | Research terminal network offline 26103 | -3/Research | Spotted Striker 26119 | -3/Research | Destroyed Striker 26239 | -3/Research | Build established: Scavenger-Tank 26240 | -3/Research | Discovered new exit (range 6) 26389 | -3/Research | Found Prototype Device 26389 | -3/Research | Identified Exp. Thermal Shield 26526 | -3/Research | Spotted Striker 26538 | -3/Research | Destroyed Striker 26559 | -3/Research | System corruption reached 10% 27209 | -3/Research | Spotted Striker 27262 | -3/Research | Destroyed Striker 27301 | -3/Research | Lost 9 parts (2p2n3u2w) 27347 | -3/Research | Spotted Striker 27357 | -3/Research | Destroyed Striker 27718 | -3/Research | Spotted Striker 27753 | -3/Research | Destroyed Striker 27778 | -3/Research | Spotted Striker 27937 | -3/Research | Spotted Striker 27950 | -3/Research | Spotted Executioner 27969 | -3/Research | Core integrity fell below 50% 27991 | -3/Research | Discovered new exit (range 10) 28007 | -3/Research | Entered Testing 28008 | -3/Testing | Maximum security lockdown engaged 28037 | -3/Testing | Lost 16 parts (3p4n6u3w) 28203 | -3/Testing | Spotted Executioner 28203 | -3/Testing | Spotted Striker 28203 | -3/Testing | Spotted Striker 28216 | -3/Testing | Core integrity fell below 20% 28235 | -3/Testing | Destroyed by G-67 Veteran with Plasma Rifle Last Messages --------------- 28230_ Acquired Prototype Flight Unit. 28230_ Identified Diametric Drive. 28230_ Faulty integration triggers heat surge (+227). 28232_ Adv. Myomer Leg destroyed. 28235_ C-30 ARC bursts open, deploying its payload. 28235_ G-73 Enforcer unfolds itself. 28235_ G-67 Veteran unfolds itself. 28235_ E-15 Imp unfolds itself. 28235_ Adv. VSS Leg destroyed. 28235_ Faulty Diametric Drive blown off. 28235_ Imp. Armor Integrity Analyzer blown off. 28235_ E-15 Imp destroyed. 28235_ C-30 ARC bursts open, deploying its payload. 28235_ G-73 Enforcer unfolds itself. 28235_ G-67 Veteran unfolds itself. 28235_ E-15 Imp unfolds itself. [Achievement: Torch] Map ----- +----------------------------------------------------+ | # # """ #???????????????????????????? | | #### # #???????????????????????????? | | ???# # #???????????????????????????? | | ???# # #???????????????????????????? | | ???# ##+##+########???????????????????????????? | | ???# #??????????????????????????????????? | | #### #??????????????????????????????????? | | #""" "#??????????????????????????????????? | | "#"T "%#??????????????????????????????????? | | ""%#""" "################???????????????????? | | ""!+[[[ ^^ #???????????????????? | | !"!#% / ^ #???????????????????? | | ][!#![[ gg #???????????????????? | | !!%[%=!! ^gl #???????????????????? | | !%%= ""##+######+###### #???????????????????? | | ### " "# # #? #???????????????????? | | ??########""" "#""" #? #???????????????????? | | ?????????# """#"R ## #???????????????????? | | ?????????#""" ""#""" ## #???????????????????? | | ????????????" ""# ! ## #???????????????????? | | ????????????#"""# ## g #???????????????????? | | ????????????##### """ ## g%g#???????????????????? | | ????????????????# """ ## ge#???????????????????? | | ????????????????# """ ## #???????????????????? | | ????????????????# K + / #???????????????????? | | ????????????????# K ##@% g#?????????????w?????? | | ????????????????######### =g%#???????????????????? | | ????????????????????????# gg#???????????????????? | | ????????????????????????# g#???????????????????? | | ????????????????????????# #???????????????????? | | ????????????????????????# ???????????????????? | | ????????????????????????+ ??????????????????? | | ????????????????????????# ?o???????????????? | | ????????????????????????# ??w?????????????? | | ????????????????????????? #####???????????????? | | ????????????????????????? #???????????????????? | | ????????????????????????? #???????????????????? | | ????????????????????????? #???????????????????? | | ????????????????????????? #???????????????????? | | ????????????????????????? w #???????????????????? | | ????????????????????????? ?????????????????????? | | ?????????????????????????????????????????????????? | | ?????????????????????????????????????????????????? | | ?????????????????????????????????????????????????? | | ?????????????????????????????????????????????????? | | ?????????????????????????????????????????????????? | | ?????????????????????????????????????????????????? | | ?????????????????????????????????????????????????? | | ?????????????????????????????????????????????????? | | ?????????????????????????????????????????????????? | +----------------------------------------------------+ Best States ------------- Heat Dissipation 119 Energy Generation 41 Energy Capacity 760 Matter Stores 300 Matter Capacity 300 Sight Range 22 Terrain Scan Density 10 Base Temperature (-) 200 Armor Coverage 625 Resistance: KI 20 Resistance: TH 30 Utility Shielding 66 Phase Shifting 10 Evasion (%) 55 Targeting Accuracy 8 Armor Integrity Analysis 40 Recoil Reduction 5 Particle Charging 20 Relay Coupler Types 1 Relay Coupler Value 28 Item Schematics ----------------- Imp. Carbon-fiber Leg | -8/Materials | Scanalyzed Hcp. Battery | -8/Materials | Scanalyzed Lightning Gun | -8/Materials | Scanalyzed Cld. Ion Engine | -8/Materials | Scanalyzed Arm. Treads | -8/Materials | Scanalyzed Adv. Powered Armor | -4/Factory | Scanalyzed Adv. Heat Sink | -4/Factory | Scanalyzed Robot Schematics ------------------ None Fabricated ------------ Nothing Repaired ---------- Imp. Carbon-fiber Leg | 99% | -8/Materials | Broken Imp. Medium Laser | 2% | -8/Materials Imp. Medium Laser | 18% | -7/Factory Arm. Treads | 53% | -7/Factory Alien Tech Used ----------------- None Achievements -------------- Main Advantage Torch Challenges ------------ None Game ------ Seed MetaCouplerRailcannon Manual? 0 Play Time 03:55:20 Cumulative 360.6 hours Start 2025.08.28 @ 00:32:19 End 2025.08.29 @ 02:18:43 Sessions 6 Manual Loads 0 Difficulty Rogue Special Mode None Game No. 301 Rogue 301 Adventurer 0 Explorer 0 Win Type - Total 2 Types 2/0/0/0/0/0/0/0/0/0 Lore% 79 Gallery% 68 Achievement% 55 Wizard Run 0 Options --------- Layout 2 ASCII 1 Keyboard 1 Movement Numpad Keybinds 0 Fullscreen 2 Font 32/TamsynBold Map View 50x44 Zoom Use 0% Tactical HUD 1 Map Filters NONE Filters NONE Steam 1 RUN: 7aa655d3-6124-47f1-9650-3613e0bf5485